[Event "Late-Titled-Tuesday-Blitz-October-03-2023"]
[Site "Chess.com"]
[Date "2023.10.03"]
[Round "7"]
[White "C_K_G"]
[Black "jjbolanos"]
[Result "1-0"]
[WhiteElo "1911"]
[BlackElo "2061"]
[TimeControl "180+1"]
[EndTime "15:14:10 PDT"]
[Termination "C_K_G won on time"]

1. e4 {[%clk 0:03:00.9]} 1... c5 {[%clk 0:02:53.8]} 2. Nf3 {[%clk 0:03:01.1]}
2... e6 {[%clk 0:02:52.5]} 3. d4 {[%clk 0:03:02]} 3... cxd4 {[%clk 0:02:53]} 4.
Nxd4 {[%clk 0:03:02.8]} 4... a6 {[%clk 0:02:53.7]} 5. Nc3 {[%clk 0:03:02.4]}
5... Qc7 {[%clk 0:02:53.8]} 6. Bd3 {[%clk 0:03:00.6]} 6... Nf6 {[%clk
0:02:54.3]} 7. O-O {[%clk 0:02:59.5]} 7... Be7 {[%clk 0:02:54.9]} 8. Be3 {[%clk
0:02:57.9]} 8... O-O {[%clk 0:02:53.3]} 9. f4 {[%clk 0:02:57.5]} 9... d6 {[%clk
0:02:51.5]} 10. Qf3 {[%clk 0:02:53.6]} 10... b5 {[%clk 0:02:47.8]} 11. a3 {[%clk
0:02:51.4]} 11... Bb7 {[%clk 0:02:47.8]} 12. g4 {[%clk 0:02:51.1]} 12... d5
{[%clk 0:01:44]} 13. e5 {[%clk 0:02:50]} 13... Nfd7 {[%clk 0:01:44]} 14. g5
{[%clk 0:02:34.3]} 14... g6 {[%clk 0:01:39.6]} 15. Qg4 {[%clk 0:02:12.2]} 15...
Nc5 {[%clk 0:01:17.7]} 16. Rf3 {[%clk 0:02:10.5]} 16... Nbd7 {[%clk 0:00:55.1]}
17. Rh3 {[%clk 0:02:03.7]} 17... Rfc8 {[%clk 0:00:47.3]} 18. Rf1 {[%clk
0:01:03.2]} 18... Nf8 {[%clk 0:00:37.1]} 19. Rh6 {[%clk 0:00:40.5]} 19... Ne4
{[%clk 0:00:15.4]} 20. Bxe4 {[%clk 0:00:34.5]} 20... dxe4 {[%clk 0:00:15.5]} 21.
Nce2 {[%clk 0:00:24.7]} 21... Rd8 {[%clk 0:00:08.1]} 22. c3 {[%clk 0:00:23.4]}
22... Rac8 {[%clk 0:00:08.1]} 23. h4 {[%clk 0:00:22.8]} 23... Qc4 {[%clk
0:00:07.6]} 24. Rf2 {[%clk 0:00:20.5]} 24... Qd3 {[%clk 0:00:07.9]} 25. Qg3
{[%clk 0:00:18.9]} 25... a5 {[%clk 0:00:04.6]} 26. h5 {[%clk 0:00:18.5]} 26...
b4 {[%clk 0:00:04.6]} 27. axb4 {[%clk 0:00:17.9]} 27... axb4 {[%clk 0:00:04.5]}
28. hxg6 {[%clk 0:00:18.6]} 28... fxg6 {[%clk 0:00:05.4]} 29. Rfh2 {[%clk
0:00:17.5]} 29... Rd7 {[%clk 0:00:04.1]} 30. Kf2 {[%clk 0:00:17.2]} 30... Bc5
{[%clk 0:00:04.1]} 31. Qh3 {[%clk 0:00:15.9]} 31... bxc3 {[%clk 0:00:04.3]} 32.
bxc3 {[%clk 0:00:15.7]} 32... Ba7 {[%clk 0:00:04.2]} 33. Nxe6 {[%clk 0:00:12.4]}
33... Nxe6 {[%clk 0:00:03.4]} 34. Qxe6+ {[%clk 0:00:11.9]} 34... Rf7 {[%clk
0:00:02.7]} 35. R2h3 {[%clk 0:00:10.6]} 35... Bxe3+ {[%clk 0:00:01.8]} 36. Rxe3
{[%clk 0:00:10.5]} 1-0

[Event "Late-Titled-Tuesday-Blitz-October-03-2023"]
[Site "Chess.com"]
[Date "2023.10.03"]
[Round "7"]
[White "Good_Knight_Kiss"]
[Black "CraiggoryC"]
[Result "1-0"]
[WhiteElo "2423"]
[BlackElo "2279"]
[TimeControl "180+1"]
[EndTime "15:14:11 PDT"]
[Termination "Good_Knight_Kiss won by checkmate"]

1. e4 {[%clk 0:02:59.3]} 1... e6 {[%clk 0:03:00.3]} 2. d4 {[%clk 0:02:59]} 2...
d5 {[%clk 0:03:00.9]} 3. Nc3 {[%clk 0:02:58.8]} 3... Bb4 {[%clk 0:03:01.4]} 4.
exd5 {[%clk 0:02:58.6]} 4... exd5 {[%clk 0:03:02.3]} 5. Bd3 {[%clk 0:02:58.2]}
5... Nf6 {[%clk 0:03:02.6]} 6. Bg5 {[%clk 0:02:56.5]} 6... O-O {[%clk
0:03:00.6]} 7. Qf3 {[%clk 0:02:53.6]} 7... c6 {[%clk 0:02:55.4]} 8. Bxf6 {[%clk
0:02:52.8]} 8... Qxf6 {[%clk 0:02:56.3]} 9. Qxf6 {[%clk 0:02:52.6]} 9... gxf6
{[%clk 0:02:57.2]} 10. Ne2 {[%clk 0:02:52.5]} 10... Bg4 {[%clk 0:02:49.1]} 11.
f3 {[%clk 0:02:35.7]} 11... Bh5 {[%clk 0:02:48.5]} 12. Ng3 {[%clk 0:02:12]}
12... Bg6 {[%clk 0:02:48.5]} 13. Kd2 {[%clk 0:01:58.9]} 13... Nd7 {[%clk
0:02:41.6]} 14. a3 {[%clk 0:01:50.3]} 14... Ba5 {[%clk 0:02:33.9]} 15. b4 {[%clk
0:01:48.3]} 15... Bc7 {[%clk 0:02:31.2]} 16. Nce2 {[%clk 0:01:47.4]} 16... Rfe8
{[%clk 0:02:16.1]} 17. h4 {[%clk 0:01:46]} 17... Nb6 {[%clk 0:02:10.1]} 18. h5
{[%clk 0:01:39.5]} 18... Bxd3 {[%clk 0:02:08.1]} 19. cxd3 {[%clk 0:01:31.3]}
19... a5 {[%clk 0:01:56.7]} 20. Nf5 {[%clk 0:01:11]} 20... Nc8 {[%clk
0:01:30.7]} 21. g4 {[%clk 0:01:03]} 21... Nd6 {[%clk 0:01:07.8]} 22. Neg3 {[%clk
0:00:56.8]} 22... Ra7 {[%clk 0:00:43.5]} 23. Rhe1 {[%clk 0:00:53.9]} 23... Raa8
{[%clk 0:00:22.2]} 24. Nxd6 {[%clk 0:00:35.3]} 24... Bxd6 {[%clk 0:00:22.1]} 25.
Nf5 {[%clk 0:00:35.8]} 25... Bf8 {[%clk 0:00:12.6]} 26. Rxe8 {[%clk 0:00:20.6]}
26... Rxe8 {[%clk 0:00:13.5]} 27. bxa5 {[%clk 0:00:16]} 27... Ra8 {[%clk
0:00:13.9]} 28. Rb1 {[%clk 0:00:15]} 28... Rxa5 {[%clk 0:00:14.1]} 29. Rxb7
{[%clk 0:00:14.1]} 29... Rxa3 {[%clk 0:00:14.2]} 30. Rc7 {[%clk 0:00:07.1]}
30... Ra2+ {[%clk 0:00:14.4]} 31. Ke3 {[%clk 0:00:06.3]} 31... Ra1 {[%clk
0:00:13.8]} 32. Rxc6 {[%clk 0:00:05.1]} 32... Re1+ {[%clk 0:00:13.9]} 33. Kf2
{[%clk 0:00:05]} 33... Rd1 {[%clk 0:00:14.2]} 34. Ke2 {[%clk 0:00:05.5]} 34...
Ra1 {[%clk 0:00:13.5]} 35. Rc8 {[%clk 0:00:05.6]} 35... Ra2+ {[%clk 0:00:13.6]}
36. Ke3 {[%clk 0:00:05.5]} 36... Ra1 {[%clk 0:00:13.2]} 37. h6 {[%clk
0:00:05.3]} 37... Re1+ {[%clk 0:00:11.5]} 38. Kf2 {[%clk 0:00:05.3]} 38... Re6
{[%clk 0:00:11.3]} 39. Rd8 {[%clk 0:00:03.9]} 39... Ra6 {[%clk 0:00:02.6]} 40.
Ne7+ {[%clk 0:00:03.8]} 40... Kh8 {[%clk 0:00:02.7]} 41. Rxf8# {[%clk
0:00:04.1]} 1-0

[Event "Late-Titled-Tuesday-Blitz-October-03-2023"]
[Site "Chess.com"]
[Date "2023.10.03"]
[Round "7"]
[White "Iball95"]
[Black "RichardLeyvaP"]
[Result "1/2-1/2"]
[WhiteElo "2768"]
[BlackElo "2608"]
[TimeControl "180+1"]
[EndTime "15:14:15 PDT"]
[Termination "Game drawn by repetition"]

1. e4 {[%clk 0:03:00]} 1... e5 {[%clk 0:02:59]} 2. Nf3 {[%clk 0:03:00.5]} 2...
Nc6 {[%clk 0:02:59.3]} 3. Nc3 {[%clk 0:03:00.4]} 3... Nf6 {[%clk 0:02:59]} 4.
Bb5 {[%clk 0:03:00.5]} 4... Bb4 {[%clk 0:02:58.4]} 5. Nd5 {[%clk 0:02:59.4]}
5... Bd6 {[%clk 0:02:56.7]} 6. O-O {[%clk 0:02:58.8]} 6... Nxd5 {[%clk
0:02:55.7]} 7. exd5 {[%clk 0:02:58.3]} 7... Ne7 {[%clk 0:02:56.6]} 8. Re1 {[%clk
0:02:57.5]} 8... O-O {[%clk 0:02:42.7]} 9. Nxe5 {[%clk 0:02:57.6]} 9... Nxd5
{[%clk 0:02:41.5]} 10. d4 {[%clk 0:02:55.8]} 10... c6 {[%clk 0:02:29.5]} 11. Bd3
{[%clk 0:02:55.1]} 11... Be7 {[%clk 0:02:10]} 12. h3 {[%clk 0:02:27.1]} 12... d6
{[%clk 0:02:08.1]} 13. Nf3 {[%clk 0:02:27.5]} 13... h6 {[%clk 0:02:01.1]} 14. c3
{[%clk 0:02:27]} 14... Re8 {[%clk 0:01:59.5]} 15. Bd2 {[%clk 0:02:26.6]} 15...
Bf8 {[%clk 0:01:59.6]} 16. Qc2 {[%clk 0:02:24]} 16... Nf6 {[%clk 0:01:56.3]} 17.
a4 {[%clk 0:02:24.3]} 17... Bd7 {[%clk 0:01:53.5]} 18. a5 {[%clk 0:02:21.8]}
18... Qc7 {[%clk 0:01:52.9]} 19. b4 {[%clk 0:01:56.6]} 19... a6 {[%clk 0:01:50]}
20. Bf4 {[%clk 0:01:56.3]} 20... Rxe1+ {[%clk 0:01:48.6]} 21. Rxe1 {[%clk
0:01:57.2]} 21... Re8 {[%clk 0:01:49.1]} 22. Re2 {[%clk 0:01:56.7]} 22... Rxe2
{[%clk 0:01:43.2]} 23. Qxe2 {[%clk 0:01:57.5]} 23... Qd8 {[%clk 0:01:43.7]} 24.
Bd2 {[%clk 0:01:51.1]} 24... Qe7 {[%clk 0:01:43.1]} 25. Qd1 {[%clk 0:01:51.1]}
25... Qd8 {[%clk 0:01:43.4]} 26. Bc4 {[%clk 0:01:43.1]} 26... Qe8 {[%clk
0:01:41.3]} 27. Bf4 {[%clk 0:01:37.1]} 27... Be6 {[%clk 0:01:40.7]} 28. Bd3
{[%clk 0:01:35.8]} 28... Nd5 {[%clk 0:01:38.6]} 29. Bd2 {[%clk 0:01:35.2]} 29...
Nf6 {[%clk 0:01:38.9]} 30. Qc2 {[%clk 0:01:31]} 30... Bd5 {[%clk 0:01:36.9]} 31.
Nh2 {[%clk 0:01:29.5]} 31... Be4 {[%clk 0:01:37]} 32. Nf1 {[%clk 0:01:28.9]}
32... Bxd3 {[%clk 0:01:36.6]} 33. Qxd3 {[%clk 0:01:29.8]} 33... Qe4 {[%clk
0:01:36.9]} 34. Qxe4 {[%clk 0:01:27.4]} 34... Nxe4 {[%clk 0:01:37.8]} 35. f3
{[%clk 0:01:25.9]} 35... Nxd2 {[%clk 0:01:36.1]} 36. Nxd2 {[%clk 0:01:26.8]}
36... d5 {[%clk 0:01:36.7]} 37. Kf2 {[%clk 0:01:26.3]} 37... f5 {[%clk
0:01:31.6]} 38. f4 {[%clk 0:01:24.2]} 38... Kf7 {[%clk 0:01:31.2]} 39. Kf3
{[%clk 0:01:22.6]} 39... Be7 {[%clk 0:01:29.5]} 40. g3 {[%clk 0:01:22.3]} 40...
g6 {[%clk 0:01:28.9]} 41. Nf1 {[%clk 0:01:21.2]} 41... Bd6 {[%clk 0:01:26.9]}
42. Ne3 {[%clk 0:01:21.5]} 42... Ke6 {[%clk 0:01:26.5]} 43. Nc2 {[%clk
0:01:22.3]} 43... Be7 {[%clk 0:01:26]} 44. Ne1 {[%clk 0:01:22.7]} 44... Bf8
{[%clk 0:01:24.9]} 45. Nd3 {[%clk 0:01:23.6]} 45... Bd6 {[%clk 0:01:25.7]} 46.
Ne5 {[%clk 0:01:21.9]} 46... g5 {[%clk 0:01:20.6]} 47. Nd3 {[%clk 0:01:10.7]}
47... Kf6 {[%clk 0:01:20.2]} 48. Ne1 {[%clk 0:01:03.5]} 48... Ke6 {[%clk
0:01:17.9]} 49. Ng2 {[%clk 0:01:03.8]} 49... Kf6 {[%clk 0:01:17.6]} 50. Ne1
{[%clk 0:00:50.9]} 50... Bc7 {[%clk 0:01:16.9]} 51. Nd3 {[%clk 0:00:51.3]} 51...
Bd6 {[%clk 0:01:17.2]} 52. Kg2 {[%clk 0:00:51.5]} 52... Ke6 {[%clk 0:01:11.5]}
53. Kf2 {[%clk 0:00:51.3]} 53... Kf6 {[%clk 0:01:11.9]} 54. Ke3 {[%clk
0:00:51.8]} 54... Ke6 {[%clk 0:01:09.2]} 55. Kf2 {[%clk 0:00:42.2]} 55... Kf6
{[%clk 0:01:09.3]} 56. Kf3 {[%clk 0:00:42.4]} 56... Ke6 {[%clk 0:01:08.9]} 57.
fxg5 {[%clk 0:00:41.1]} 57... hxg5 {[%clk 0:01:08.5]} 58. Nc5+ {[%clk
0:00:41.1]} 58... Bxc5 {[%clk 0:01:06.7]} 59. bxc5 {[%clk 0:00:39]} 59... Kf6
{[%clk 0:01:05.1]} 60. h4 {[%clk 0:00:39.2]} 60... Kg6 {[%clk 0:01:05.2]} 61.
Kg2 {[%clk 0:00:30.6]} 61... Kh5 {[%clk 0:01:05]} 62. hxg5 {[%clk 0:00:30.6]}
62... Kxg5 {[%clk 0:01:05.2]} 63. Kf3 {[%clk 0:00:31]} 63... Kg6 {[%clk
0:01:05.3]} 64. Kf4 {[%clk 0:00:27.5]} 64... Kf6 {[%clk 0:01:04.4]} 65. g4
{[%clk 0:00:26.7]} 65... fxg4 {[%clk 0:01:04.6]} 66. Kxg4 {[%clk 0:00:27.6]}
66... Kg6 {[%clk 0:01:05.1]} 67. Kf4 {[%clk 0:00:27.7]} 67... Kf6 {[%clk
0:01:05.6]} 68. Kg4 {[%clk 0:00:27.3]} 68... Kg6 {[%clk 0:01:06]} 69. Kf4 {[%clk
0:00:28.2]} 69... Kf6 {[%clk 0:01:06.4]} 70. Kg4 {[%clk 0:00:29.1]} 1/2-1/2

[Event "Late-Titled-Tuesday-Blitz-October-03-2023"]
[Site "Chess.com"]
[Date "2023.10.03"]
[Round "7"]
[White "GoltsevDmitry2000"]
[Black "arminmusovic"]
[Result "1-0"]
[WhiteElo "2686"]
[BlackElo "2508"]
[TimeControl "180+1"]
[EndTime "15:14:16 PDT"]
[Termination "GoltsevDmitry2000 won by resignation"]

1. e4 {[%clk 0:02:59.9]} 1... c6 {[%clk 0:02:59.2]} 2. d4 {[%clk 0:02:59.8]}
2... d5 {[%clk 0:02:59.1]} 3. Nc3 {[%clk 0:03:00.7]} 3... dxe4 {[%clk
0:02:58.9]} 4. Nxe4 {[%clk 0:03:01.3]} 4... Nf6 {[%clk 0:02:59.1]} 5. Nxf6+
{[%clk 0:03:01]} 5... exf6 {[%clk 0:02:59.3]} 6. Nf3 {[%clk 0:03:01.9]} 6... Bd6
{[%clk 0:02:59.1]} 7. Bd3 {[%clk 0:03:02.3]} 7... O-O {[%clk 0:02:58.9]} 8. O-O
{[%clk 0:03:02.9]} 8... Bg4 {[%clk 0:02:58.6]} 9. h3 {[%clk 0:03:03]} 9... Bh5
{[%clk 0:02:58.9]} 10. c3 {[%clk 0:03:03.1]} 10... Re8 {[%clk 0:02:58.6]} 11.
Bd2 {[%clk 0:02:54.6]} 11... Nd7 {[%clk 0:02:57.7]} 12. Qb3 {[%clk 0:02:53.2]}
12... Bxf3 {[%clk 0:02:55.4]} 13. gxf3 {[%clk 0:02:53.3]} 13... Nf8 {[%clk
0:02:45.2]} 14. Qxb7 {[%clk 0:02:47.6]} 14... Rb8 {[%clk 0:02:44.4]} 15. Qxc6
{[%clk 0:02:47.7]} 15... Rxb2 {[%clk 0:02:43.8]} 16. Be3 {[%clk 0:02:29.5]}
16... Rb6 {[%clk 0:02:41.7]} 17. Qa4 {[%clk 0:02:25.8]} 17... Bb8 {[%clk
0:02:37.9]} 18. Rab1 {[%clk 0:02:20.4]} 18... Qc7 {[%clk 0:02:22.6]} 19. f4
{[%clk 0:02:19.8]} 19... Rd8 {[%clk 0:02:05.2]} 20. Rxb6 {[%clk 0:02:18.5]}
20... axb6 {[%clk 0:02:06.1]} 21. Qc4 {[%clk 0:02:12]} 21... Qd6 {[%clk
0:02:03.1]} 22. Qb4 {[%clk 0:01:59.8]} 22... Qc7 {[%clk 0:01:57.3]} 23. Rb1
{[%clk 0:01:58.3]} 23... g5 {[%clk 0:01:49.5]} 24. Qxb6 {[%clk 0:01:54.5]} 24...
Qd7 {[%clk 0:01:23.4]} 25. Qxf6 {[%clk 0:01:46.4]} 25... gxf4 {[%clk 0:01:19.1]}
26. Bxf4 {[%clk 0:01:28.6]} 26... Bxf4 {[%clk 0:01:12.6]} 27. Qxf4 {[%clk
0:01:28.3]} 27... Ng6 {[%clk 0:01:06.1]} 28. Bxg6 {[%clk 0:01:17]} 28... hxg6
{[%clk 0:01:07]} 29. Rb8 {[%clk 0:01:15.6]} 29... Rxb8 {[%clk 0:01:02.4]} 30.
Qxb8+ {[%clk 0:01:16.5]} 30... Kh7 {[%clk 0:01:03.1]} 31. Qg3 {[%clk 0:01:12.8]}
31... Qd5 {[%clk 0:00:53.8]} 32. a4 {[%clk 0:01:12.1]} 32... Qb3 {[%clk
0:00:52.6]} 33. Qf3 {[%clk 0:01:11.8]} 33... Kg8 {[%clk 0:00:50.3]} 34. a5
{[%clk 0:01:09.9]} 34... Qa3 {[%clk 0:00:46.9]} 35. Kh2 {[%clk 0:00:55.4]} 35...
Qxa5 {[%clk 0:00:40.3]} 36. d5 {[%clk 0:00:54.9]} 36... Qc5 {[%clk 0:00:36.7]}
37. Kg2 {[%clk 0:00:48.9]} 37... f5 {[%clk 0:00:32.3]} 38. Qd3 {[%clk
0:00:46.2]} 38... Kf8 {[%clk 0:00:29.3]} 39. Qd4 {[%clk 0:00:42.1]} 39... Qxd4
{[%clk 0:00:17.2]} 40. cxd4 {[%clk 0:00:42]} 40... Ke7 {[%clk 0:00:18.1]} 41.
Kf3 {[%clk 0:00:33.3]} 41... g5 {[%clk 0:00:15.9]} 42. Ke3 {[%clk 0:00:32.9]}
42... Kd6 {[%clk 0:00:12.8]} 43. Kd3 {[%clk 0:00:33.1]} 43... Kxd5 {[%clk
0:00:12.6]} 44. f3 {[%clk 0:00:33.6]} 44... Kc6 {[%clk 0:00:04.2]} 45. Kc4
{[%clk 0:00:32]} 45... Kd6 {[%clk 0:00:04.8]} 46. d5 {[%clk 0:00:32.2]} 46...
Ke5 {[%clk 0:00:05.2]} 47. Kc5 {[%clk 0:00:32.7]} 47... Kf4 {[%clk 0:00:05.4]}
48. d6 {[%clk 0:00:33.1]} 48... Kxf3 {[%clk 0:00:05.3]} 49. d7 {[%clk
0:00:33.5]} 49... g4 {[%clk 0:00:05.6]} 50. hxg4 {[%clk 0:00:33.7]} 50... Kxg4
{[%clk 0:00:06.2]} 51. d8=Q {[%clk 0:00:33.8]} 51... f4 {[%clk 0:00:07.1]} 52.
Qd3 {[%clk 0:00:32.7]} 52... f3 {[%clk 0:00:08]} 53. Qf1 {[%clk 0:00:33]} 53...
Kg3 {[%clk 0:00:08.7]} 54. Kd4 {[%clk 0:00:33.5]} 54... f2 {[%clk 0:00:07.2]}
55. Ke3 {[%clk 0:00:34.1]} 55... Kh2 {[%clk 0:00:07.6]} 56. Qxf2+ {[%clk
0:00:34.2]} 56... Kh1 {[%clk 0:00:07.5]} 57. Qf8 {[%clk 0:00:34.6]} 1-0

[Event "Late-Titled-Tuesday-Blitz-October-03-2023"]
[Site "Chess.com"]
[Date "2023.10.03"]
[Round "7"]
[White "Bala-Afiada"]
[Black "lluiss"]
[Result "1-0"]
[WhiteElo "1935"]
[BlackElo "2136"]
[TimeControl "180+1"]
[EndTime "15:14:16 PDT"]
[Termination "Bala-Afiada won by resignation"]

1. d4 {[%clk 0:03:00.9]} 1... d5 {[%clk 0:02:57.9]} 2. c4 {[%clk 0:03:00.9]}
2... e6 {[%clk 0:02:56.7]} 3. Nf3 {[%clk 0:03:01]} 3... c6 {[%clk 0:02:56.3]} 4.
Qc2 {[%clk 0:02:59.7]} 4... f5 {[%clk 0:02:55.8]} 5. g3 {[%clk 0:03:00.4]} 5...
Nf6 {[%clk 0:02:55.3]} 6. Bg2 {[%clk 0:03:01.3]} 6... Bd6 {[%clk 0:02:55.1]} 7.
O-O {[%clk 0:03:01.8]} 7... O-O {[%clk 0:02:55.2]} 8. b3 {[%clk 0:03:02.1]} 8...
Bd7 {[%clk 0:02:54.1]} 9. Ba3 {[%clk 0:03:02.1]} 9... Be8 {[%clk 0:02:54.3]} 10.
Bxd6 {[%clk 0:03:01.1]} 10... Qxd6 {[%clk 0:02:54.5]} 11. Nbd2 {[%clk
0:02:58.2]} 11... Nbd7 {[%clk 0:02:53.8]} 12. Qc3 {[%clk 0:02:57.1]} 12... Ne4
{[%clk 0:02:52.4]} 13. Nxe4 {[%clk 0:02:55.6]} 13... fxe4 {[%clk 0:02:49.9]} 14.
Ne5 {[%clk 0:02:56]} 14... Nxe5 {[%clk 0:02:45.7]} 15. dxe5 {[%clk 0:02:56.9]}
15... Qc5 {[%clk 0:02:46.2]} 16. e3 {[%clk 0:02:42.3]} 16... Bh5 {[%clk
0:02:42.7]} 17. Rac1 {[%clk 0:02:35.3]} 17... Bf3 {[%clk 0:02:37.3]} 18. b4
{[%clk 0:02:32.2]} 18... Qe7 {[%clk 0:02:31.3]} 19. cxd5 {[%clk 0:02:30.7]}
19... exd5 {[%clk 0:02:31]} 20. Qd4 {[%clk 0:02:17.9]} 20... a6 {[%clk
0:01:37.5]} 21. a4 {[%clk 0:02:17.1]} 21... Qe6 {[%clk 0:01:33.5]} 22. Rc5
{[%clk 0:01:48]} 22... Rf5 {[%clk 0:01:26.7]} 23. b5 {[%clk 0:01:47.1]} 23...
axb5 {[%clk 0:01:25.2]} 24. axb5 {[%clk 0:01:47]} 24... Rxe5 {[%clk 0:01:24]}
25. bxc6 {[%clk 0:01:46.3]} 25... bxc6 {[%clk 0:01:23.9]} 26. Rfc1 {[%clk
0:01:40.7]} 26... Rc8 {[%clk 0:01:00.7]} 27. Rxc6 {[%clk 0:01:25.5]} 27... Rxc6
{[%clk 0:00:56.5]} 28. Rxc6 {[%clk 0:01:25.4]} 28... Qxc6 {[%clk 0:00:56]} 29.
Qxe5 {[%clk 0:01:25.7]} 29... h6 {[%clk 0:00:39.8]} 30. Bxf3 {[%clk 0:00:37.4]}
30... exf3 {[%clk 0:00:39.1]} 31. Qb8+ {[%clk 0:00:38.1]} 31... Kh7 {[%clk
0:00:37.6]} 32. Qb1+ {[%clk 0:00:38.8]} 32... g6 {[%clk 0:00:35.3]} 33. Qd1
{[%clk 0:00:31.6]} 33... Qf6 {[%clk 0:00:22.2]} 34. h3 {[%clk 0:00:28.2]} 34...
Qf5 {[%clk 0:00:22.1]} 35. Kh2 {[%clk 0:00:27]} 35... h5 {[%clk 0:00:22.4]} 36.
Qc1 {[%clk 0:00:21]} 36... Qe4 {[%clk 0:00:19.8]} 37. Qc7+ {[%clk 0:00:20]}
37... Kh6 {[%clk 0:00:19.5]} 38. Qf4+ {[%clk 0:00:16.8]} 38... Qxf4 {[%clk
0:00:18.7]} 39. gxf4 {[%clk 0:00:17.7]} 39... h4 {[%clk 0:00:16.5]} 40. Kg1
{[%clk 0:00:13.9]} 40... Kg7 {[%clk 0:00:16.6]} 41. Kf1 {[%clk 0:00:14.5]} 41...
Kf6 {[%clk 0:00:16]} 42. Ke1 {[%clk 0:00:15.4]} 42... Kf5 {[%clk 0:00:16.1]} 43.
Kd2 {[%clk 0:00:15.6]} 43... Ke4 {[%clk 0:00:15.4]} 44. Kc3 {[%clk 0:00:14.5]}
44... Kf5 {[%clk 0:00:14.2]} 45. Kd4 {[%clk 0:00:14.8]} 45... Ke6 {[%clk
0:00:14.4]} 46. Kc5 {[%clk 0:00:15.1]} 46... Kf5 {[%clk 0:00:12.6]} 47. Kxd5
{[%clk 0:00:15.1]} 47... g5 {[%clk 0:00:13.5]} 48. fxg5 {[%clk 0:00:12.9]} 48...
Kxg5 {[%clk 0:00:14.4]} 49. Ke5 {[%clk 0:00:13.5]} 1-0

[Event "Late-Titled-Tuesday-Blitz-October-03-2023"]
[Site "Chess.com"]
[Date "2023.10.03"]
[Round "7"]
[White "acertijo08"]
[Black "angelgab3"]
[Result "0-1"]
[WhiteElo "2335"]
[BlackElo "2556"]
[TimeControl "180+1"]
[EndTime "15:14:22 PDT"]
[Termination "angelgab3 won by resignation"]

1. e4 {[%clk 0:03:00.9]} 1... e5 {[%clk 0:02:58.2]} 2. Nf3 {[%clk 0:03:00.8]}
2... Nc6 {[%clk 0:02:58.7]} 3. Bb5 {[%clk 0:03:00.5]} 3... a6 {[%clk 0:02:58.7]}
4. Ba4 {[%clk 0:03:00.8]} 4... Nf6 {[%clk 0:02:59.3]} 5. O-O {[%clk 0:03:00.9]}
5... b5 {[%clk 0:02:59.8]} 6. Bb3 {[%clk 0:03:00.9]} 6... Bb7 {[%clk 0:03:00.7]}
7. d3 {[%clk 0:03:00.1]} 7... Be7 {[%clk 0:03:00.3]} 8. c3 {[%clk 0:02:59.5]}
8... O-O {[%clk 0:02:59.8]} 9. Nbd2 {[%clk 0:02:58.4]} 9... Re8 {[%clk
0:02:57.6]} 10. Re1 {[%clk 0:02:58.4]} 10... Bf8 {[%clk 0:02:56.8]} 11. Nf1
{[%clk 0:02:58.3]} 11... Na5 {[%clk 0:02:56.6]} 12. Bc2 {[%clk 0:02:58.1]} 12...
c5 {[%clk 0:02:56.8]} 13. Ng3 {[%clk 0:02:57]} 13... h6 {[%clk 0:02:52.4]} 14.
Nf5 {[%clk 0:02:54.5]} 14... d5 {[%clk 0:02:47.6]} 15. Qe2 {[%clk 0:02:47.4]}
15... c4 {[%clk 0:02:41.5]} 16. b4 {[%clk 0:02:23.2]} 16... cxd3 {[%clk
0:02:35.5]} 17. Qxd3 {[%clk 0:02:03]} 17... dxe4 {[%clk 0:02:25.8]} 18. Qxd8
{[%clk 0:02:01.8]} 18... Raxd8 {[%clk 0:02:26.7]} 19. Nd2 {[%clk 0:01:44]} 19...
Nc4 {[%clk 0:02:26.6]} 20. Nxc4 {[%clk 0:01:35.1]} 20... bxc4 {[%clk 0:02:26.6]}
21. Be3 {[%clk 0:01:31.4]} 21... Bc6 {[%clk 0:02:03]} 22. h3 {[%clk 0:01:26.5]}
22... Rd7 {[%clk 0:01:48.8]} 23. a4 {[%clk 0:01:23.4]} 23... Red8 {[%clk
0:01:47.9]} 24. Bb6 {[%clk 0:01:21.6]} 24... Rb8 {[%clk 0:01:47.6]} 25. Be3
{[%clk 0:01:16.2]} 25... Ne8 {[%clk 0:01:34.8]} 26. Rad1 {[%clk 0:01:11]} 26...
Rxd1 {[%clk 0:01:23.2]} 27. Rxd1 {[%clk 0:01:10.2]} 27... Kh7 {[%clk 0:01:17.5]}
28. Ng3 {[%clk 0:01:02.9]} 28... Nf6 {[%clk 0:01:13.2]} 29. Re1 {[%clk
0:00:51.8]} 29... g6 {[%clk 0:01:06.3]} 30. Bc1 {[%clk 0:00:51]} 30... Rd8
{[%clk 0:01:05.8]} 31. b5 {[%clk 0:00:43.2]} 31... axb5 {[%clk 0:01:04.2]} 32.
axb5 {[%clk 0:00:44.1]} 32... Bxb5 {[%clk 0:01:04.9]} 33. Nxe4 {[%clk
0:00:43.7]} 33... Nxe4 {[%clk 0:01:05.5]} 34. Bxe4 {[%clk 0:00:44.1]} 34... f5
{[%clk 0:01:00.6]} 35. Bc2 {[%clk 0:00:41]} 35... e4 {[%clk 0:00:44]} 36. g4
{[%clk 0:00:36.9]} 36... Bg7 {[%clk 0:00:39.7]} 37. gxf5 {[%clk 0:00:36.8]}
37... gxf5 {[%clk 0:00:40.5]} 38. f3 {[%clk 0:00:36.7]} 38... Bxc3 {[%clk
0:00:40]} 39. Re2 {[%clk 0:00:36.8]} 39... Bd4+ {[%clk 0:00:36.4]} 40. Kg2
{[%clk 0:00:30.7]} 40... c3 {[%clk 0:00:33.8]} 41. Re1 {[%clk 0:00:30.8]} 41...
Bd3 {[%clk 0:00:31.5]} 42. Bb3 {[%clk 0:00:20.3]} 42... Rd7 {[%clk 0:00:24.7]}
43. fxe4 {[%clk 0:00:20.2]} 43... Bxe4+ {[%clk 0:00:19.7]} 44. Kf1 {[%clk
0:00:20.6]} 44... Bd3+ {[%clk 0:00:18]} 45. Kg2 {[%clk 0:00:20.3]} 45... Rg7+
{[%clk 0:00:18.6]} 46. Kf3 {[%clk 0:00:20.1]} 46... Be4+ {[%clk 0:00:17.4]} 47.
Kf4 {[%clk 0:00:18.3]} 47... Rg2 {[%clk 0:00:18]} 48. Rxe4 {[%clk 0:00:17.6]}
48... fxe4 {[%clk 0:00:17.9]} 49. Kxe4 {[%clk 0:00:18.1]} 49... Bg7 {[%clk
0:00:18.5]} 50. Bd5 {[%clk 0:00:17.3]} 50... Rh2 {[%clk 0:00:18.6]} 51. Be6
{[%clk 0:00:16.6]} 51... Rh1 {[%clk 0:00:18.4]} 52. Bf5+ {[%clk 0:00:16.4]}
52... Kh8 {[%clk 0:00:18.6]} 53. Be3 {[%clk 0:00:16.7]} 53... c2 {[%clk
0:00:19.1]} 54. Kf3 {[%clk 0:00:15.7]} 54... c1=Q {[%clk 0:00:19.4]} 55. Bxc1
{[%clk 0:00:15.6]} 55... Rxc1 {[%clk 0:00:20.3]} 0-1